[Event "Italian-ch Teams-B 2022"]
[Site "Montesilvano"]
[Date "2022.04.20"]
[Round "3.3"]
[White "Trabattoni, Franco"]
[Black "Bifulco, Michel"]
[Result "0-1"]
[ECO "B57"]
[WhiteElo "2230"]
[BlackElo "2274"]
[Annotator "TA"]
[PlyCount "92"]
[EventDate "2022.04.19"]
[EventType "team-tourn"]
[EventCountry "ITA"]
[SourceTitle "playchess.com"]
[Source "ChessBase"]
[SourceQuality "1"]
[TimeControl "40/5400+30:1800+30"]

{[%evp 19,92,1,8,0,0,0,22,0,0,-15,0,-37,-24,-23,-31,-83,-59,-118,-103,-110,-97,-122,-77,-139,-84,-151,-138,-179,-107,-129,-91,-168,-152,-132,-43,-100,-101,-101,-101,-79,-83,-114,-9,-86,-72,-71,-76,-270,-114,-447,-417,-508,-26,-39,-8,-93,0,-49,0,-83,-7,-1,-5,-77,-35,-37,-30,-37,-40,-43,-43,-43,-36,-29998,-29999]} 1. e4 {[%emt 0:00:09]} c5 {[%emt 0:00:10]} 2. Nf3 {[%emt 0:00:06]} Nc6 {[%emt 0:00:09]} 3. d4 {[%emt 0:00:16]} cxd4 {[%emt 0:00:26]} 4. Nxd4 {[%emt 0:00:06]} Nf6 {[%emt 0:00:06]} 5. Nc3 {[%emt 0:00:07]} d6 {[%emt 0:00:07]} 6. Bc4 {[%emt 0:01:25]} Qb6 {[%emt 0:00:42]} 7. Nb3 {[%emt 0:00:47]} e6 {[%emt 0:00:36]} 8. O-O {[%emt 0:01:35]} Be7 {[%emt 0:00:52]} 9. Be3 {[%emt 0:03:07]} Qc7 {[%emt 1:31:52]} 10. f4 {[%emt 0:01:56]} a6 {[%emt 0:00:00]} 11. a3 {[%emt 0:04:16] B57: Classical Sicilian: Sozin with 6...Qb6.} b5 {[%emt 0:00:00]} 12. Be2 {[%emt 0:00:06]} Bb7 {[%emt 0:00:00]} 13. Bf3 {[%emt 0:00:15] The position is equal.} Rc8 {[%emt 0:00:00]} 14. Qe2 {[%emt 0:00:25]} O-O {[%emt 0:00:00]} 15. g4 {[%emt 0:02:27]} Nd7 {[%emt 0:00:00][%cal Bf6d7,Bd7b6,Bb6c4][%mdl 32]} 16. g5 {[%emt 0:00:11]} Nb6 {[%emt 0:00:00]} 17. Nd2 {[%emt 0:02:41] Inhibits Nc4.} (17. a4 $15 b4 18. a5 Nxa5 19. Nb5 $1 (19. Nxa5 bxc3 20. b3 Ba8 $11) 19... axb5 20. Nxa5) 17... Na5 $1 $17 {[%emt 0:00:00]} 18. Bg2 {[%emt 0:16:44] [#]} (18. Kh1 $15) 18... Nac4 $146 {[%emt 0:00:00]} ({Predecessor:} 18... Rfe8 19. Rae1 Nac4 20. Nxc4 Nxc4 21. Nd1 e5 22. Qf2 d5 23. fxe5 Nxe5 24. Bd4 dxe4 25. Bxe4 {0-1 (56) Hasan,M (2251)-Das,A (2353) Cochin 2004}) 19. Nxc4 {[%emt 0:00:09]} Nxc4 {[%emt 0:00:00]} 20. Bc1 {[%emt 0:00:22]} Rfe8 {[%emt 0:00:00][%cal Od6d5]} 21. Qg4 {[%emt 0:07:19] [#]} (21. Kh1 $142) 21... Bf8 {[%emt 0:00:00]} (21... d5 $142 $1 {[%cal Oc4a3]} 22. exd5 exd5) 22. Rf3 {[%emt 0:05:04]} (22. Ne2 $142) 22... d5 {[%emt 0:00:00]} 23. Rd3 {[%emt 0:17:16]} Qc5+ {[%emt 0:00:00]} ({Black should play} 23... Qa5 $19 {And now ...b4 would win.} 24. Rh3 b4) 24. Kf1 {[%emt 0:00:20]} Rcd8 {[%emt 0:00:00]} 25. exd5 {[%emt 0:06:15]} (25. e5 $17) 25... exd5 $19 {[%emt 0:00:00][%cal Oe8e1]} 26. Qd1 {[%emt 0:05:11] Prevents Re1+.} Re3 {[%emt 0:00:42] &Nero is much more active.} 27. Bxe3 {[%emt 0:04:36]} (27. b3 $15 Rxd3 28. Qxd3) 27... Nxe3+ $17 {[%emt 0:00:06]} 28. Rxe3 {[%emt 0:00:03]} Qxe3 {[%emt 0:00:02]} 29. Qf3 {[%emt 0:00:12]} Qc5 {[%emt 0:02:01][%cal Od5d4]} 30. Rd1 {[%emt 0:01:48]} Re8 {[%emt 0:06:47] Prevents Qe2.} (30... a5 $17 {aiming for ...b4.} 31. Nxd5 Qc4+ 32. Kf2 Bxd5 33. Rxd5 Rxd5 34. Qxd5 Qxf4+ 35. Ke2 Qxh2) 31. Qf2 {[%emt 0:04:42]} (31. Qd3 $1 $11) 31... Qc4+ {[%emt 0:00:13]} 32. Rd3 {[%emt 0:00:17][%cal Rg2d5]} Bc5 {[%emt 0:00:30]} 33. Qh4 {[%emt 0:05:08]} (33. Qg3 $17 d4 34. Bxb7 dxc3 35. b3) 33... Ba7 {[%emt 0:00:29]} (33... b4 $19 34. axb4 Qxb4) 34. Bf3 $2 {[%emt 0:01:23][%mdl 8192]} (34. Qg3 $17 {nothing else works.}) 34... Qc5 $19 {[%emt 0:00:45][%csl Ga7][%cal Rc5g1]} 35. Qg3 {[%emt 0:00:53] [#] Against Qg1+} Rd8 $2 {[%emt 0:00:39]} ({Better is} 35... Bc8 $1 $19 {[%cal Rc8h3] ( -> ...Bh3+!)} 36. Be2 d4) 36. Qg2 $11 {[%emt 0:01:04][%cal Rc3d5]} Qc4 {[%emt 0:00:43]} (36... Bc8 $5 {[%cal Rc8h3]} 37. Ne4 Qf8 $15) 37. Qg3 {[%emt 0:00:21]} (37. Nxd5 $11 {remains equal.} Bxd5 38. Bxd5 Qxf4+ 39. Qf3 Qxf3+ 40. Bxf3 Rxd3 41. cxd3) 37... Qc5 {[%emt 0:00:05]} 38. Qg2 {[%emt 0:00:36][%cal Rc3d5]} Qc4 {[%emt 0:00:00]} (38... Bc8 $5 {[%cal Rc8h3]} 39. Ne4 Qf8 $15) 39. Qg3 {[%emt 0:00:05]} Bb8 {[%emt 0:00:57]} (39... Kh8 $17) 40. b3 {[%emt 0:02:04]} Qc5 $36 {[%emt 0:00:47][%mdl 2048] Black has the initiative.} 41. Kg2 {[%emt 0:32:47]} (41. Nxd5 $11 Bxd5 42. Qf2 Qxa3 43. Bxd5 Qc1+ 44. Kg2) 41... Ba7 {[%emt 0:17:23] Hoping for ...Qg1+.} ({Of course not} 41... Qxa3 42. Nxd5 Kh8 43. Qf2 $11) 42. Qe1 {[%emt 0:00:00][%cal Of3d5] Inhibits Qg1+.} Kf8 {[%emt 0:00:34]} ({Resist} 42... Qxa3 43. Bxd5 Ba8 44. Bxa8 Rxa8 45. Ne4 $14) 43. b4 {[%emt 0:00:00]} Qc8 {[%emt 0:10:33]} 44. Qd2 {[%emt 0:03:03][%cal Rc3d5]} Re8 {[%emt 0:00:52]} 45. Nxd5 {[%emt 0:00:45]} Qe6 {[%emt 0:02:15]} 46. Nc7 $2 {[%emt 0:01:21][%mdl 8192]} (46. Kf1 $15) 46... Qg4+ $1 {[%emt 0:00:20] Weighted Error Value: White=0.65/Black=0.51} 0-1

[Event "Italian-ch Teams-B 2022"]
[Site "Montesilvano"]
[Date "2022.04.20"]
[Round "3.4"]
[White "Mazzilli, Piero"]
[Black "Bolognese, Leonardo"]
[Result "1-0"]
[ECO "D45"]
[WhiteElo "2296"]
[BlackElo "1998"]
[Annotator "TA"]
[PlyCount "39"]
[EventDate "2022.04.19"]
[EventType "team-tourn"]
[EventCountry "ITA"]
[SourceTitle "playchess.com"]
[Source "ChessBase"]
[SourceQuality "1"]
[TimeControl "40/5400+30:1800+30"]

{[%evp 13,39,25,33,39,29,26,34,15,24,0,44,47,49,50,79,62,166,104,238,252,325,300,593,223,522,530,517,515]} 1. d4 {[%emt 0:02:02]} d5 {[%emt 0:01:25]} 2. c4 {[%emt 0:01:09]} c6 {[%emt 0:00:15]} 3. Nf3 {[%emt 0:00:54]} Nf6 {[%emt 0:00:25]} 4. Nc3 {[%emt 0:01:11]} e6 {[%emt 0:00:31]} 5. e3 {[%emt 0:04:52]} Nbd7 {[%emt 0:00:52]} 6. Qc2 {[%emt 0:03:45]} b6 {[%emt 0:01:14]} 7. cxd5 {[%emt 0:04:25]} exd5 {[%emt 0:02:20] 7...cxd5 is the fancy move.} 8. Bd3 {[%emt 0:01:33] D45: Semi-Slav: 5 e3.} Be7 {[%emt 0:09:44]} 9. O-O {[%emt 0:06:20]} Bb7 {[%emt 0:11:43]} 10. b3 {[%emt 0:09:38] White is slightly better.} O-O {[%emt 0:09:04]} 11. Bb2 {[%emt 0:04:05]} c5 {[%emt 0:06:06]} 12. Rfd1 {[%emt 0:09:38]} cxd4 {[%emt 0:22:23]} 13. Nxd4 {[%emt 0:04:03]} Rc8 {[%emt 0:00:20]} 14. Qe2 {[%emt 0:09:21] [#] 0x0.00299f40aea5dp-1022s more active pieces.} Bb4 $146 {[%emt 0:21:44]} (14... g6 $14) ({Predecessor:} 14... Nc5 15. Bf5 Ra8 16. Rac1 g6 17. Bb1 Bd6 18. Ncb5 Bb8 19. b4 Ne6 20. Nc6 Bxc6 21. Rxc6 a6 {1-0 (31) Takahashi,M (2036)-Akintonde,J (1784) Chess.com INT 2021}) 15. Rac1 {[%emt 0:04:34]} ({White should play} 15. Ncb5 $1 $18 {[%cal Rb5a7]}) 15... Qe7 {[%emt 0:04:28] Loses the game.} (15... Rc5 $16) 16. Nf5 $18 {[%emt 0:05:25]} Qe6 {[%emt 0:01:10] [#]} 17. Nb5 $1 {[%emt 0:00:13]} Nc5 $2 {[%emt 0:01:39] [#]} (17... Bc5 18. b4 Ba6 19. Nxa7 (19. bxc5 Bxb5 20. Bxb5 Qxf5 $16) 19... Rc7 20. Bxa6 Rxa7) 18. Nbd4 $2 {[%emt 0:01:59]} (18. Nxg7 $1 {[%mdl 512]} Kxg7 19. Nd4) 18... Qd7 {[%emt 0:00:05]} (18... Nxd3 {was necessary.} 19. Nxe6 Nxc1 20. Rxc1 (20. Qb5 fxe6 21. Qxb4 Ne2+ 22. Kf1 exf5 $16) 20... Rxc1+ 21. Bxc1 fxe6) 19. Bb5 {[%emt 0:01:23]} Qd8 {[%emt 0:03:35]} 20. a3 {[%emt 0:00:01] Weighted Error Value: White=0.50/Black=0.86} 1-0

[Event "Italian-ch Teams-B 2022"]
[Site "Montesilvano"]
[Date "2022.04.20"]
[Round "3.4"]
[White "Pasini, Nicolo"]
[Black "Altini, Nicola"]
[Result "1/2-1/2"]
[ECO "B30"]
[WhiteElo "2252"]
[BlackElo "2403"]
[Annotator "TA"]
[PlyCount "54"]
[EventDate "2022.04.19"]
[EventType "team-tourn"]
[EventCountry "ITA"]
[SourceTitle "playchess.com"]
[Source "ChessBase"]
[SourceQuality "1"]
[TimeControl "40/5400+30:1800+30"]

{[%evp 16,54,20,8,13,12,13,16,8,11,6,13,0,0,12,33,16,-63,-62,-71,-60,-60,-62,-58,-43,-36,-36,-36,-36,-113,-36,-36,-36,-48,-40,-75,0,0,0,-55,0]} 1. e4 {[%emt 0:00:30]} c5 {[%emt 0:00:30]} 2. Nc3 {[%emt 0:00:30]} Nc6 {[%emt 0:00:30]} 3. Bb5 {[%emt 0:00:30]} Nb8 {[%emt 0:00:48]} 4. Bf1 {[%emt 0:01:38]} Nc6 {[%emt 0:00:00]} 5. Bb5 {[%emt 0:00:10]} Nd4 {[%emt 0:00:00]} 6. Nf3 {[%emt 0:00:04]} e6 {[%emt 0:00:00]} 7. O-O {[%emt 0:00:07]} a6 {[%emt 0:00:00]} 8. Bd3 {[%emt 0:00:06]} Nxf3+ {[%emt 0:00:13]} 9. Qxf3 {[%emt 0:00:07]} Qc7 {[%emt 1:32:59] B30: Sicilian: 2...Nc6 3 Bb5, lines without ...g6.} 10. b3 {[%emt 0:01:03]} Bd6 {[%emt 0:00:00]} 11. Qh3 {[%emt 0:00:05]} Ne7 {[%emt 0:00:00] The position is equal.} 12. Bb2 {[%emt 1:31:40]} b5 $1 {[%emt 0:00:00][%mdl 4] is more profitable than 12...Be5 at the moment.} 13. Nd1 {[%emt 0:00:00]} c4 {[%emt 0:00:00]} 14. bxc4 {[%emt 0:00:00]} bxc4 {[%emt 0:00:00]} 15. Be2 {[%emt 0:00:00]} Ng6 {[%emt 0:00:00] [#]} 16. f4 $146 {[%emt 0:00:00]} ({But not} 16. Bxg7 Nf4 $1 17. Qf3 Rg8 $17) (16. Ne3 $11) ({Predecessor:} 16. Ne3 Nf4 17. Qf3 Bb7 18. Nxc4 Nxe2+ 19. Qxe2 Bxh2+ 20. Kh1 d5 21. exd5 Bxd5 22. Ne3 Bc6 23. f4 Bxf4 24. Nf5 O-O-O 25. Ne7+ Qxe7 26. Rxf4 Qb7 27. Bc3 Rd5 {½-½ (25) Geider,F (2474)-Sadowski,M (2470) ICCF email 2017}) 16... Nxf4 $15 {[%emt 0:00:00]} 17. Rxf4 {[%emt 0:00:00]} Bxf4 {[%emt 0:00:00]} 18. Bxg7 {[%emt 0:00:00]} Rg8 {[%emt 0:00:00]} 19. Qxh7 {[%emt 0:00:00] [#]} Bxh2+ $1 {[%emt 0:00:00]} 20. Kf1 $1 {[%emt 0:00:00] [#]} ({Not} 20. Kh1 $2 {[#]} Rxg7 $1 {[%mdl 512]} 21. Qxg7 Be5 22. Qg8+ Ke7 $19) 20... Rxg7 {[%emt 0:00:00]} 21. Qxg7 {[%emt 0:00:00]} Be5 {[%emt 0:00:00]} 22. Qg8+ {[%emt 0:00:00]} Ke7 {[%emt 0:00:00]} 23. Rb1 {[%emt 0:00:00]} Bb7 {[%emt 0:00:00]} 24. Qg5+ {[%emt 0:00:00]} Bf6 {[%emt 0:00:00] This bishop pair is nice.} 25. Qe3 {[%emt 0:00:00][%cal Oe4e5]} Be5 {[%emt 0:00:00]} (25... Bc6 $5 {[%cal Rc7a5]} 26. Nf2 Qd6 $15) 26. Qg5+ {[%emt 0:00:00]} Bf6 {[%emt 0:00:00]} 27. Qe3 {[%emt 0:00:00][%cal Ob1b7]} Be5 {[%emt 0:00:00] Weighted Error Value: White=0.07 (flawless) /Black=0.07 (flawless)} ({Black should try} 27... Rg8 $15) 1/2-1/2

[Event "Italian-ch Teams-B 2022"]
[Site "Montesilvano"]
[Date "2022.04.20"]
[Round "3.4"]
[White "Brociner, Beniamino"]
[Black "Manca, Federico"]
[Result "0-1"]
[ECO "D34"]
[WhiteElo "2155"]
[BlackElo "2370"]
[Annotator "TA"]
[PlyCount "58"]
[EventDate "2022.04.19"]
[EventType "team-tourn"]
[EventCountry "ITA"]
[SourceTitle "playchess.com"]
[Source "ChessBase"]
[SourceQuality "1"]
[TimeControl "40/5400+30:1800+30"]

{[%evp 26,58,15,9,33,34,29,11,22,8,28,0,-8,-20,-14,-17,-27,-6,-10,-80,-78,-131,-139,-145,-141,-308,-298,-300,-302,-493,-469,-722,-628,-715,-703]} 1. Nf3 {[%emt 0:00:05]} d5 {[%emt 0:00:24]} 2. d4 {[%emt 0:00:09]} c5 {[%emt 0:00:20]} 3. g3 {[%emt 0:01:43]} Nc6 {[%emt 0:01:14]} 4. Bg2 {[%emt 0:00:09]} Nf6 {[%emt 0:02:56]} 5. O-O {[%emt 0:00:43]} e6 {[%emt 0:01:44][%cal Be7e6,Be6d5,Bd5d4][%mdl 32]} 6. c4 {[%emt 0:03:33]} Be7 {[%emt 0:01:32]} 7. cxd5 {[%emt 0:02:59]} exd5 {[%emt 0:00:11]} 8. Nc3 {[%emt 0:00:11]} O-O {[%emt 0:00:36]} 9. dxc5 {[%emt 0:10:17]} Bxc5 {[%emt 0:08:03]} 10. Bg5 {[%emt 0:03:02]} d4 {[%emt 0:00:26]} 11. Bxf6 {[%emt 0:11:00]} Qxf6 {[%emt 0:00:16]} 12. Ne4 {[%emt 0:00:10]} Qe7 {[%emt 0:00:33]} 13. Nxc5 {[%emt 0:00:06]} Qxc5 {[%emt 0:00:05]} 14. Qd2 {[%emt 0:06:27][%cal Ob2b4]} h6 {[%emt 0:19:47] D34: Tarrasch Defence: 6 g3 Nf6 7 Bg2 Be7.} 15. Rfd1 {[%emt 0:10:26][%cal Rf3d4]} Rd8 $1 {[%emt 0:01:53][%cal Bf8d8,Bd8d7,Bd7e7,Be7e5][%mdl 32]} 16. Qf4 {[%emt 0:05:10]} Be6 {[%emt 0:01:46][%cal Bc8e6,Be6f5,Bf5g6][%mdl 32] [#] The position is equal.} 17. Rd2 $146 {[%emt 0:08:30]} ({Predecessor:} 17. a3 a5 18. Rac1 Qb6 19. Rd2 Rd5 20. Ne1 Rf5 21. Qe4 Rd8 22. Nd3 Rb5 23. Qh4 {1-0 (41) Socko,B (2646)-Collins,S (2463) Riga 2013}) 17... Rd7 {[%emt 0:07:04]} 18. g4 {[%emt 0:10:46]} Re8 {[%emt 0:22:57]} 19. g5 {[%emt 0:07:09]} hxg5 {[%emt 0:00:44]} 20. Nxg5 {[%emt 0:01:21]} Bf5 {[%emt 0:01:19]} 21. Rad1 {[%emt 0:11:04]} Bg6 {[%emt 0:03:39][%cal Od4d3]} 22. Qh4 {[%emt 0:04:28]} (22. Be4 $11 Bxe4 23. Nxe4) 22... Rde7 $17 {[%emt 0:04:00]} 23. Bf3 {[%emt 0:01:26]} (23. Nf3 $142) 23... Re5 {[%emt 0:06:12]} 24. Nh3 {[%emt 0:00:32] [#]} Be4 $1 $36 {[%emt 0:02:32][%mdl 2048] Hoping for ...Bxf3. Black is on the roll. &Nero is more active.} 25. Nf4 $2 {[%emt 0:00:58] This costs White the game.} (25. Qg3 $17 {was called for.}) 25... Bxf3 $19 {[%emt 0:01:10]} 26. exf3 {[%emt 0:00:01]} Rg5+ {[%emt 0:00:19]} 27. Kh1 $2 {[%emt 0:00:25]} (27. Kf1) 27... Qf5 {[%emt 0:00:46] Black is clearly winning.} 28. Rg1 {[%emt 0:01:07]} (28. Ng2 $142 f6 29. Rd3) 28... Rxg1+ {[%emt 0:00:44]} 29. Kxg1 {[%emt 0:00:02]} g5 {[%emt 0:00:29] Weighted Error Value: White=0.65/Black=0.02 (flawless)} 0-1

[Event "Italian-ch Teams-B 2022"]
[Site "Montesilvano"]
[Date "2022.04.21"]
[Round "4.1"]
[White "Dardha, Daniel"]
[Black "Moroni, Luca Jr"]
[Result "1/2-1/2"]
[ECO "D33"]
[WhiteElo "2541"]
[BlackElo "2588"]
[Annotator "TA"]
[PlyCount "156"]
[EventDate "2022.04.19"]
[EventType "team-tourn"]
[EventCountry "ITA"]
[SourceTitle "playchess.com"]
[Source "ChessBase"]
[SourceQuality "1"]
[TimeControl "40/5400+30:1800+30"]

{[%evp 38,155,33,22,48,2,2,-13,0,0,0,-15,-1,-6,-9,-3,-13,-12,-15,-85,-95,-77,-48,-52,-43,-52,-38,-38,-38,-40,-45,-52,-60,-66,-69,-129,-137,-140,-145,-170,-170,-137,-125,-100,-79,-202,-224,-315,-316,-316,-307,-305,-282,-282,-246,-254,-271,-1088,-1064,-1005,-291,-1103,-1064,-1192,-1086,-1185,-1185,-1185,-1103,-1088,-1081,-1050,-1050,-1042,0,0,0,0,0,0,0,0,0,0,0,0,0,0,0,-8,0,0,0,0,0,0,0,0,0,0,0,0,0,0,0,0,0,0,0,0,0,0,0,0,0,0,0,0,0,0]} 1. d4 {[%emt 0:03:54]} d5 {[%emt 0:00:03]} 2. c4 {[%emt 0:00:09]} e6 {[%emt 0:00:02]} 3. Nc3 {[%emt 0:01:12]} c5 {[%emt 0:00:22]} 4. cxd5 {[%emt 0:01:31]} exd5 {[%emt 0:00:14]} 5. Nf3 {[%emt 0:00:10]} Nf6 {[%emt 0:00:02]} 6. g3 {[%emt 0:02:39]} Nc6 {[%emt 0:00:19]} 7. Bg2 {[%emt 0:00:19]} cxd4 {[%emt 0:00:06]} 8. Nxd4 {[%emt 0:00:05]} Bc5 {[%emt 0:00:04]} 9. Nb3 {[%emt 0:04:41]} Bb6 {[%emt 0:00:19]} 10. O-O {[%emt 0:00:06]} d4 {[%emt 0:00:02]} 11. Na4 {[%emt 0:00:08]} O-O {[%emt 0:00:05]} 12. Bg5 {[%emt 0:00:06]} Re8 {[%emt 0:00:03]} 13. Re1 {[%emt 0:00:12]} h6 {[%emt 0:00:04]} 14. Bxf6 {[%emt 0:00:06]} Qxf6 {[%emt 0:00:03]} 15. Nxb6 {[%emt 0:00:08]} axb6 {[%emt 0:00:04]} 16. Bxc6 {[%emt 0:00:18]} bxc6 {[%emt 0:00:02]} 17. Qxd4 {[%emt 0:00:08]} Qd8 {[%emt 0:00:05]} 18. a3 {[%emt 0:04:04]} Ba6 {[%emt 0:04:39]} 19. Qc3 {[%emt 0:11:21]} c5 {[%emt 0:02:15]} 20. Rad1 {[%emt 0:01:37]} Qc7 {[%emt 0:00:07]} 21. e4 {[%emt 0:01:59]} (21. Nc1 $14) 21... Rad8 $11 {[%emt 0:01:15]} 22. f3 {[%emt 0:02:09]} Rd7 {[%emt 0:00:26]} 23. Rxd7 {[%emt 0:06:07]} Qxd7 {[%emt 0:00:08]} 24. Nd2 {[%emt 0:05:28]} Rd8 {[%emt 1:31:41]} 25. Nc4 {[%emt 0:23:16]} Qe6 {[%emt 0:00:00]} 26. Ne3 {[%emt 0:07:27]} Rd3 {[%emt 0:00:00]} 27. Qc2 {[%emt 0:01:47]} Qf6 {[%emt 0:00:00]} 28. Kg2 {[%emt 0:08:46]} (28. Qf2 $11) 28... Qd4 $1 $17 {[%emt 0:00:00]} 29. Nf1 {[%emt 0:00:02]} Bc4 {[%emt 0:00:00]} 30. Rc1 {[%emt 0:02:31]} Be6 {[%emt 0:00:00]} 31. Qe2 {[%emt 0:01:32]} Bb3 $1 {[%emt 0:00:00]} 32. Qf2 {[%emt 0:02:02]} Bd1 {[%emt 0:00:00]} 33. Qxd4 {[%emt 0:00:33]} Bxf3+ {[%emt 0:00:00]} 34. Kf2 {[%emt 0:00:01]} cxd4 {[%emt 0:00:00]} 35. Rc4 {[%emt 0:03:13]} b5 {[%emt 0:00:00]} 36. Rb4 {[%emt 0:00:52]} (36. Rc5 $15) 36... Bg4 $1 $17 {[%emt 0:00:00]} ({Don't take} 36... Bxe4 37. Ke2 $14) 37. h3 {[%emt 0:05:20]} Bxh3 {[%emt 0:00:00]} 38. Ke2 {[%emt 0:00:07]} Bxf1+ {[%emt 0:00:00]} 39. Kxf1 {[%emt 0:00:02]} Rxg3 {[%emt 0:00:00]} 40. Rxb5 {[%emt 0:00:06]} Re3 {[%emt 0:00:00]} 41. Kf2 {[%emt 0:20:01]} (41. e5 $17) 41... Rxe4 $19 {[%emt 0:05:19]} 42. b4 {[%emt 0:00:48]} (42. Rb8+ {was worth a try.} Kh7 43. Rd8) 42... g5 $19 {[%emt 0:05:27]} 43. Rd5 {[%emt 0:01:58] [#]} Re3 $1 {[%emt 0:03:41]} 44. a4 {[%emt 0:00:14]} Ra3 {[%emt 0:00:42]} 45. a5 {[%emt 0:00:58]} Ra4 {[%emt 0:00:59]} 46. Rxd4 {[%emt 0:01:06]} Kg7 {[%emt 0:03:08]} 47. Rd2 $2 {[%emt 0:08:12]} (47. Rg4) 47... Rxb4 $19 {[%emt 0:01:43]} 48. Ra2 {[%emt 0:00:03] [#]} Rb7 $1 {[%emt 0:00:13]} 49. a6 {[%emt 0:00:01]} Ra7 {[%emt 0:00:03]} 50. Kf3 {[%emt 0:00:08]} Kg6 {[%emt 0:05:44]} 51. Ra5 {[%emt 0:00:45]} h5 {[%emt 0:02:08]} 52. Kg3 {[%emt 0:00:08]} h4+ {[%emt 0:03:07]} 53. Kg4 {[%emt 0:00:23]} f6 {[%emt 0:00:04]} 54. Ra3 {[%emt 0:01:26]} f5+ {[%emt 0:00:21]} 55. Kf3 {[%emt 0:00:09]} h3 $2 {[%emt 0:02:28]} (55... Kh6 $19 56. Ra1 Kh5) 56. Kg3 $11 {[%emt 0:00:37]} g4 {[%emt 0:00:02]} 57. Ra2 {[%emt 0:01:04]} Kg5 {[%emt 0:03:11]} 58. Ra5 {[%emt 0:00:36]} Kg6 {[%emt 0:02:54]} 59. Ra2 {[%emt 0:00:18]} Kf6 {[%emt 0:01:41]} (59... Ra8 $5 60. a7 Kg5 $11) 60. Ra1 {[%emt 0:00:27]} Kf7 {[%emt 0:01:35]} 61. Ra5 {[%emt 0:00:45]} Kf6 {[%emt 0:00:35]} 62. Ra1 {[%emt 0:00:09]} Kg5 {[%emt 0:00:22]} 63. Ra5 {[%emt 0:00:08]} Rc7 {[%emt 0:00:24]} (63... Ra8 $5 64. a7 Kf6 $11) 64. a7 {[%emt 0:01:38]} Rc3+ {[%emt 0:00:02]} 65. Kh2 {[%emt 0:02:58]} Rc2+ {[%emt 0:00:50]} 66. Kg1 $1 {[%emt 0:00:33]} ({Avoid the trap} 66. Kh1 $2 Rc1+ 67. Kh2 Kh4 $19) 66... g3 {[%emt 0:01:20]} 67. Ra1 {[%emt 0:00:05]} h2+ {[%emt 0:02:43]} 68. Kh1 {[%emt 0:00:04]} Rc8 {[%emt 0:00:11]} 69. a8=Q {[%emt 0:00:06]} Rxa8 {[%emt 0:00:04]} 70. Rxa8 {[%emt 0:00:04]} f4 {[%emt 0:00:09]} 71. Rf8 {[%emt 0:00:59]} Kg4 $1 {[%emt 0:00:14]} 72. Rf7 {[%emt 0:00:47]} Kf3 {[%emt 0:00:45]} 73. Rb7 $1 {[%emt 0:00:55]} Kf2 {[%emt 0:00:59]} 74. Rb2+ {[%emt 0:00:11]} Kf3 {[%emt 0:00:39]} 75. Rb3+ $1 {[%emt 0:00:11]} Kg4 {[%emt 0:00:05]} 76. Rb4 {[%emt 0:00:30]} Kh3 {[%emt 0:00:31]} 77. Rb2 {[%emt 0:00:12]} f3 {[%emt 0:00:10]} 78. Rxh2+ $1 {[%emt 0:00:07]} gxh2 {[%emt 0:00:03]} 1/2-1/2

[Event "Italian-ch Teams-B 2022"]
[Site "Montesilvano"]
[Date "2022.04.21"]
[Round "4.1"]
[White "Rombaldoni, Denis"]
[Black "Caprio, Guido"]
[Result "0-1"]
[ECO "D05"]
[WhiteElo "2485"]
[BlackElo "2426"]
[Annotator "TA"]
[PlyCount "52"]
[EventDate "2022.04.19"]
[EventType "team-tourn"]
[EventCountry "ITA"]
[SourceTitle "playchess.com"]
[Source "ChessBase"]
[SourceQuality "1"]
[TimeControl "40/5400+30:1800+30"]

{[%evp 12,52,16,8,10,11,15,15,13,11,12,8,9,6,12,-16,-8,-17,17,-137,-100,-132,-125,-126,-133,-129,-139,-139,-125,-201,-177,-415,-164,-167,-177,-722,-706,-800,-789,-29985,-29986,-29998,-29999]} 1. d4 {[%emt 0:00:12]} d5 {[%emt 0:00:04]} 2. Nf3 {[%emt 0:00:14]} Nf6 {[%emt 0:00:04]} 3. e3 {[%emt 0:00:06]} e6 {[%emt 0:00:34]} 4. Bd3 {[%emt 0:01:40]} c5 {[%emt 0:01:38]} 5. b3 {[%emt 0:01:31]} Nc6 {[%emt 0:00:05]} 6. O-O {[%emt 0:01:01]} Bd6 {[%emt 0:07:18]} 7. Bb2 {[%emt 0:00:15]} cxd4 {[%emt 0:00:07] D05: Colle System with ...e6.} 8. exd4 {[%emt 0:00:26]} b6 {[%emt 0:00:46]} 9. Nbd2 {[%emt 0:03:20]} Bb7 {[%emt 0:00:06] The position is equal.} 10. Ne5 {[%emt 0:05:12]} O-O {[%emt 0:00:07]} 11. a3 {[%emt 0:03:58]} Ne7 {[%emt 0:06:57]} 12. Qe2 {[%emt 0:01:04]} Rc8 {[%emt 0:02:07] [#]} 13. h4 $146 {[%emt 0:04:35]} ({Predecessor:} 13. Rfe1 Ng6 14. g3 Qe7 15. f3 Rc7 16. Nf1 Rfc8 17. Ne3 Bxe5 18. dxe5 Nd7 19. f4 Nc5 20. Bd4 Nxd3 {½-½ (20) Tomashevsky,E (2702)-Schroeder,J (2552) Germany 2018}) 13... Nf5 {[%emt 0:02:50]} 14. h5 {[%emt 0:01:13]} Ne4 {[%emt 0:12:39]} 15. Ndf3 $2 {[%emt 0:37:13] Inhibits Qh4.} (15. Nxe4 $11 dxe4 16. Bxe4 Bxe4 17. Qxe4) 15... Qe7 {[%emt 0:22:12]} (15... f6 16. Nc4 $17) 16. c4 {[%emt 0:02:48]} (16. g4 $2 Nh6 17. a4 f5 $19) 16... f6 {[%emt 0:03:12]} 17. Ng4 {[%emt 0:01:02]} Qf7 {[%emt 0:09:42] &Nero is more active.} 18. Bxe4 {[%emt 0:00:57]} dxe4 {[%emt 0:00:04]} 19. Nd2 {[%emt 0:00:07] [#]} Ne7 $1 {[%emt 0:04:17][%cal Bf5e7,Be7g6,Bg6f4,Bf4e2][%mdl 32]} 20. h6 {[%emt 0:14:08]} (20. Rad1 $17) 20... Ng6 {[%emt 0:03:57] aiming for ...Nf4.} 21. f3 $2 {[%emt 0:09:39]} (21. Nxe4 Bxe4 22. hxg7 (22. Qxe4 $2 f5 $19) 22... Kxg7 23. Qxe4) 21... f5 $2 {[%emt 0:08:21]} (21... Nf4 22. Qe3 Qh5 23. Nxe4 Bxe4 24. hxg7 {[#]} (24. Qxe4 $2 f5 $19) 24... Kxg7 $1 25. fxe4 (25. Qxe4 $2 f5 $19) 25... Qxg4) 22. fxe4 $19 {[%emt 0:03:02]} Nf4 $36 {[%emt 0:00:08][%mdl 2112] Deflection. Black is really pushing.} 23. Qe3 {[%emt 0:06:09]} (23. Rxf4 Bxf4 24. Rf1) 23... fxg4 {[%emt 0:00:14]} 24. hxg7 {[%emt 0:01:08]} Qxg7 {[%emt 0:00:36] ( -> ...Qh6)} 25. c5 {[%emt 0:00:47] [#]} Qh6 $1 {[%emt 0:01:24]} 26. Nc4 {[%emt 0:00:27] [#]} (26. cxd6 Nh3+) 26... Ne2+ $1 {[%emt 0:14:01][%mdl 512] Weighted Error Value: White=1.05/Black=0.19 (very precise)} 0-1